fUST/lending_fUST_20250802
["ID","MTS","AMOUNT","RATE_DAILY","PERIOD"]
[376722255,1754088642674,-460.0,0.00019791,2]
[376722257,1754088642683,-460.0,0.00019791,2]
[376722259,1754088642692,-460.0,0.00019792,2]
[376722261,1754088642701,-460.0,0.00019792,2]
[376722263,1754088642711,-460.0,0.00019792,2]
[376722265,1754088642720,-460.0,0.00019792,2]
[376722267,1754088642730,-460.0,0.00019792,2]
[376722269,1754088642739,-460.0,0.00019792,2]
[376722270,1754088642748,-959.38,0.00019792,2]
[376722272,1754088642757,-460.0,0.00019792,2]
[376722274,1754088642767,-460.0,0.00019792,2]
[376722276,1754088642779,-763.6,0.00019792,2]
[376722278,1754088642788,-460.0,0.00019792,2]
[376722280,1754088642798,-689.07,0.00019792,2]
[376722282,1754088642808,-998.2,0.00019792,2]
[376722284,1754088642818,-1571.55,0.00019792,2]
[376722286,1754088642828,-366.58084044,0.00019792,2]
[376722288,1754088642837,-577.96,0.00019792,2]
[376722290,1754088642852,-460.0,0.00019792,2]
[376722292,1754088642861,-568.71,0.00019792,2]
[376722294,1754088642870,-460.0,0.00019792,2]
[376722296,1754088642880,-460.0,0.00019792,2]
[376722298,1754088642889,-460.0,0.00019792,2]
[376722300,1754088642898,-1155.31,0.00019792,2]
[376722302,1754088642908,-435.57171071,0.00019792,2]
[376722304,1754088642917,-460.0,0.00019792,2]
[376722306,1754088642927,-460.0,0.00019792,2]
[376722308,1754088642936,-1345.52,0.00019792,2]
[376722310,1754088642945,-460.0,0.00019792,2]
[376722312,1754088642955,-1075.67,0.00019792,2]
[376722314,1754088642964,-938.91,0.00019792,2]
[376722316,1754088642973,-2094.03,0.00019792,2]
[376722318,1754088642983,-460.0,0.00019792,2]
[376722320,1754088642993,-460.0,0.00019792,2]
[376722322,1754088643003,-8743.45,0.00019792,2]
[376722325,1754088643012,-460.0,0.00019792,2]
[376722328,1754088643021,-460.0,0.00019792,2]
[376722331,1754088643031,-460.0,0.00019792,2]
[376722334,1754088643039,-460.0,0.00019792,2]
[376722337,1754088643048,-460.0,0.00019792,2]
[376722340,1754088643057,-460.0,0.00019792,2]
[376722343,1754088643067,-460.0,0.00019792,2]
[376722346,1754088643076,-1076.94,0.00019792,2]
[376722349,1754088643085,-915.89,0.00019792,2]
[376722351,1754088643094,-460.0,0.00019792,2]
[376722354,1754088643107,-460.0,0.00019792,2]
[376722357,1754088643116,-460.0,0.00019792,2]
[376722360,1754088643125,-460.0,0.00019792,2]
[376722362,1754088643134,-460.0,0.00019792,2]
[376722365,1754088643143,-918.67,0.00019792,2]
[376722368,1754088643152,-843.32,0.00019792,2]
[376722371,1754088643161,-781.13,0.00019792,2]
[376722374,1754088643171,-688.21,0.00019792,2]
[376722377,1754088643179,-1291.59,0.00019792,2]
[376722379,1754088643189,-942.84,0.00019792,2]
[376722382,1754088643198,-550.61,0.00019792,2]
[376722385,1754088643207,-460.0,0.00019792,2]
[376722387,1754088643217,-460.0,0.00019792,2]
[376722389,1754088643226,-460.0,0.00019792,2]
[376722391,1754088643235,-460.0,0.00019793,2]
[376722393,1754088643244,-460.0,0.00019793,2]
[376722395,1754088643253,-460.0,0.00019793,2]
[376722397,1754088643262,-460.0,0.00019793,2]
[376722399,1754088643271,-460.0,0.00019793,2]
[376722401,1754088643281,-460.0,0.00019793,2]
[376722403,1754088643290,-460.0,0.00019793,2]
[376722405,1754088643299,-460.0,0.00019793,2]
[376722407,1754088643308,-460.0,0.00019793,2]
[376722408,1754088643317,-460.0,0.00019793,2]
[376722410,1754088643325,-460.0,0.00019793,2]
[376722412,1754088643335,-4484.45,0.00019793,2]
[376722414,1754088643344,-516.91360445,0.00019793,2]
[376722416,1754088643356,-460.0,0.00019793,2]
[376722418,1754088643366,-460.0,0.00019793,2]
[376722420,1754088643375,-896.45,0.00019793,2]
[376722422,1754088643384,-728.64,0.00019793,2]
[376722424,1754088643393,-460.0,0.00019793,2]
[376722426,1754088643402,-562.16,0.00019793,2]
[376722428,1754088643412,-604.18724851,0.00019793,2]
[376722430,1754088643421,-273.74223341,0.00019793,2]
[376722432,1754088643430,-201.29118701,0.00019793,2]
[376722434,1754088643439,-460.0,0.00019793,2]
[376722436,1754088643449,-460.0,0.00019793,2]
[376722438,1754088643457,-566.75,0.00019793,2]
[376722440,1754088643467,-576.79,0.00019793,2]
[376722442,1754088643476,-460.0,0.00019793,2]
[376722444,1754088643486,-460.0,0.00019793,2]
[376722446,1754088643495,-475.55,0.00019793,2]
[376722448,1754088643504,-460.0,0.00019793,2]
[376722450,1754088643513,-460.0,0.00019793,2]
[376722451,1754088643522,-879.31,0.00019793,2]
[376722452,1754088643531,-460.0,0.00019793,2]
[376722453,1754088643540,-460.0,0.00019793,2]
[376722454,1754088643549,-158.60233019,0.00019793,2]
[376722455,1754088643558,-460.0,0.00019793,2]
[376722456,1754088643567,-421.98287862,0.00019793,2]
[376722457,1754088643576,-460.0,0.00019793,2]
[376722459,1754088643585,-636.2,0.00019793,2]
[376722461,1754088643594,-460.0,0.00019793,2]
[376722462,1754088643605,-460.0,0.00019793,2]
[376722464,1754088643613,-460.0,0.00019793,2]
[376722466,1754088643622,-460.0,0.00019793,2]
[376722468,1754088643631,-1383.57,0.00019793,2]
[376722479,1754088643711,-460.0,0.00019793,2]
[376722481,1754088643728,-1043.29,0.00019793,2]
[376722483,1754088643738,-460.0,0.00019793,2]
[376722485,1754088643747,-460.0,0.00019793,2]
[376722487,1754088643756,-803.23,0.00019793,2]
[376722489,1754088643767,-460.0,0.00019793,2]
[376722491,1754088643779,-460.0,0.00019793,2]
[376722493,1754088643788,-460.0,0.00019793,2]
[376722495,1754088643797,-463.81,0.00019793,2]
[376722497,1754088643806,-569.14109059,0.00019793,2]
[376722499,1754088643817,-460.0,0.00019793,2]
[376722501,1754088643826,-460.0,0.00019793,2]
[376722503,1754088643835,-423.30881644,0.00019793,2]
[376722505,1754088643847,-460.0,0.00019793,2]
[376722507,1754088643859,-460.0,0.00019793,2]
[376722509,1754088643869,-460.0,0.00019793,2]
[376722511,1754088643878,-460.0,0.00019793,2]
[376722513,1754088643887,-1212.03,0.00019793,2]
[376722515,1754088643897,-828.95,0.00019793,2]
[376722517,1754088643906,-460.0,0.00019793,2]
[376722519,1754088643915,-460.0,0.00019793,2]
[376722521,1754088643924,-460.0,0.00019793,2]
[376722523,1754088643933,-1363.97,0.00019793,2]
[376722525,1754088643942,-673.23,0.00019793,2]
[376722527,1754088643951,-841.34,0.00019793,2]
[376722529,1754088643960,-460.0,0.00019793,2]
[376722531,1754088643969,-460.0,0.00019793,2]
[376722533,1754088643979,-584.48,0.00019793,2]
[376722535,1754088643988,-1080.77,0.00019793,2]
[376722537,1754088643997,-460.0,0.00019793,2]
[376722539,1754088644006,-460.0,0.00019793,2]
[376722541,1754088644015,-460.0,0.00019793,2]
[376722543,1754088644024,-708.83,0.00019793,2]
[376722545,1754088644034,-460.0,0.00019793,2]
[376722547,1754088644043,-460.0,0.00019793,2]
[376722549,1754088644052,-460.0,0.00019793,2]
[376722551,1754088644061,-460.0,0.00019793,2]
[376722553,1754088644070,-986.67,0.00019793,2]
[376722555,1754088644079,-460.0,0.00019793,2]
[376722557,1754088644088,-460.0,0.00019793,2]
[376722559,1754088644097,-460.0,0.00019793,2]
[376722561,1754088644108,-2439.65,0.00019793,2]
[376722563,1754088644117,-811.38,0.00019794,2]
[376722565,1754088644126,-460.0,0.00019794,2]
[376722567,1754088644135,-669.71,0.00019794,2]
[376722569,1754088644145,-460.0,0.00019794,2]
[376722571,1754088644154,-460.0,0.00019794,2]
[376722572,1754088644163,-612.39,0.00019794,2]
[376722573,1754088644172,-460.0,0.00019794,2]
[376722574,1754088644181,-475.61,0.00019794,2]
[376722576,1754088644190,-464.31,0.00019794,2]
[376722578,1754088644199,-460.0,0.00019794,2]
[376722580,1754088644209,-494.06,0.00019794,2]
[376722582,1754088644218,-499.33435445,0.00019794,2]
[376722583,1754088644227,-967.75,0.00019794,2]
[376722586,1754088644237,-460.0,0.00019794,2]
[376722587,1754088644246,-1789.64,0.00019794,2]
[376722589,1754088644255,-288.59782005,0.00019795,2]
[376722591,1754088644264,-743.72,0.00019795,2]
[376722593,1754088644274,-460.0,0.00019795,2]
[376722595,1754088644283,-473.06407242,0.00019795,2]
[376722597,1754088644293,-460.0,0.00019795,2]
[376722599,1754088644302,-460.0,0.00019795,2]
[376722601,1754088644312,-189.49,0.00019795,2]
[376722603,1754088644321,-460.0,0.00019795,2]
[376722605,1754088644330,-460.0,0.00019795,2]
[376722607,1754088644340,-460.0,0.00019795,2]
[376722609,1754088644351,-460.0,0.00019795,2]
[376722611,1754088644361,-460.0,0.00019795,2]
[376722613,1754088644370,-2073.82,0.00019795,2]
[376722615,1754088644379,-460.0,0.00019795,2]
[376722617,1754088644389,-543.12,0.00019795,2]
[376722619,1754088644398,-460.0,0.00019796,2]
[376722621,1754088644408,-460.0,0.00019796,2]
[376722623,1754088644417,-460.0,0.00019796,2]
[376722625,1754088644427,-460.0,0.00019796,2]
[376722627,1754088644436,-588.51,0.00019796,2]
[376722629,1754088644445,-460.0,0.00019796,2]
[376722631,1754088644455,-460.0,0.00019796,2]
[376722633,1754088644464,-460.0,0.00019796,2]
[376722635,1754088644473,-917.78,0.00019796,2]
[376722637,1754088644482,-4366.32,0.00019796,2]
[376722639,1754088644491,-460.0,0.00019796,2]
[376722641,1754088644500,-406.38747922,0.00019797,2]
[376722643,1754088644509,-2293.28,0.00019797,2]
[376722645,1754088644518,-737.44,0.00019797,2]
[376722647,1754088644527,-460.0,0.00019797,2]
[376722649,1754088644537,-784.39392821,0.00019833,2]
[376722651,1754088644546,-151.0,0.000199,2]
[376722653,1754088644555,-151.0,0.000199,2]
[376722655,1754088644564,-151.0,0.000199,2]
[376722657,1754088644573,-68841.49964502,0.0001999,2]
[376722659,1754088644582,-3477.92534301,0.0002,20]
[376722661,1754088644591,-800.0,0.00020055,2]
[376722663,1754088644602,-460.0,0.00020065,2]
[376722665,1754088644611,-460.0,0.00020065,2]
[376722667,1754088644620,-460.0,0.00020065,2]
[376722669,1754088644629,-460.0,0.00020065,2]
[376722671,1754088644638,-460.0,0.00020065,2]
[376722672,1754088644647,-1701.56,0.00020065,2]
[376722675,1754088644657,-1115.94,0.00020065,2]
[376722677,1754088644666,-852.62,0.00020065,2]
[376722678,1754088644675,-460.0,0.00020065,2]
[376722680,1754088644685,-460.0,0.00020065,2]
[376722682,1754088644694,-869.0,0.00020065,2]
[376722684,1754088644703,-464.12,0.00020065,2]
[376722686,1754088644712,-1117.62,0.00020065,2]
[376722688,1754088644722,-912.55,0.00020065,2]
[376722690,1754088644731,-460.0,0.00020065,2]
[376722692,1754088644740,-460.0,0.00020065,2]
[376722694,1754088644750,-901.04,0.00020065,2]
[376722696,1754088644759,-534.63346801,0.00020065,2]
[376722698,1754088644770,-577.28,0.00020065,2]
[376722700,1754088644781,-460.0,0.00020065,2]
[376722702,1754088644792,-488.32339445,0.00020065,2]
[376722704,1754088644801,-460.0,0.00020066,2]
[376722706,1754088644810,-460.0,0.00020066,2]
[376722708,1754088644821,-460.0,0.00020066,2]
[376722710,1754088644830,-460.0,0.00020066,2]
[376722712,1754088644839,-460.0,0.00020066,2]
[376722714,1754088644854,-460.0,0.00020066,2]
[376722716,1754088644864,-959.38,0.00020066,2]
[376722718,1754088644874,-460.0,0.00020066,2]
[376722720,1754088644883,-460.0,0.00020066,2]
[376722722,1754088644893,-763.6,0.00020066,2]
[376722724,1754088644903,-460.0,0.00020066,2]
[376722726,1754088644912,-689.07,0.00020066,2]
[376722727,1754088644922,-998.2,0.00020066,2]
[376722728,1754088644932,-1571.55,0.00020066,2]
[376722729,1754088644942,-577.96,0.00020066,2]
[376722731,1754088644951,-460.0,0.00020066,2]
[376722733,1754088644960,-568.71,0.00020066,2]
[376722734,1754088644970,-460.0,0.00020066,2]
[376722736,1754088644979,-460.0,0.00020066,2]
[376722738,1754088644989,-460.0,0.00020066,2]
[376722740,1754088644998,-1155.31,0.00020066,2]
[376722742,1754088645008,-460.0,0.00020066,2]
[376722744,1754088645017,-460.0,0.00020066,2]
[376722746,1754088645027,-1345.52,0.00020066,2]
[376722748,1754088645037,-460.0,0.00020066,2]
[376722750,1754088645046,-1075.67,0.00020066,2]
[376722751,1754088645055,-938.91,0.00020066,2]
[376722752,1754088645064,-2094.03,0.00020066,2]
[376722753,1754088645074,-460.0,0.00020066,2]
[376722754,1754088645083,-460.0,0.00020066,2]
[376722755,1754088645093,-8743.45,0.00020066,2]
[376722756,1754088645105,-460.0,0.00020066,2]
[376722757,1754088645115,-460.0,0.00020066,2]
[376722758,1754088645124,-460.0,0.00020066,2]
[376722759,1754088645133,-460.0,0.00020066,2]
[376722760,1754088645143,-460.0,0.00020066,2]
[376722761,1754088645152,-460.0,0.00020066,2]
[376722762,1754088645161,-460.0,0.00020066,2]
[376722763,1754088645171,-1076.94,0.00020066,2]
[376722764,1754088645180,-915.89,0.00020066,2]
[376722765,1754088645189,-460.0,0.00020066,2]
[376722766,1754088645276,-460.0,0.00020066,2]
[376722767,1754088645286,-460.0,0.00020066,2]
[376722768,1754088645295,-460.0,0.00020066,2]
[376722769,1754088645305,-918.67,0.00020066,2]
[376722770,1754088645314,-843.32,0.00020066,2]
[376722771,1754088645324,-781.13,0.00020066,2]
[376722772,1754088645333,-688.21,0.00020066,2]
[376722773,1754088645342,-1291.59,0.00020066,2]
[376722774,1754088645355,-942.84,0.00020066,2]
[376722775,1754088645365,-550.61,0.00020066,2]
[376722776,1754088645374,-460.0,0.00020066,2]
[376722777,1754088645384,-460.0,0.00020066,2]
[376722778,1754088645393,-468.28582491,0.00020067,2]
[376722779,1754088645403,-460.0,0.00020067,2]
[376722780,1754088645412,-460.0,0.00020067,2]
[376722781,1754088645422,-460.0,0.00020067,2]
[376722782,1754088645431,-460.0,0.00020067,2]
[376722783,1754088645440,-460.0,0.00020067,2]
[376722784,1754088645449,-460.0,0.00020067,2]
[376722785,1754088645458,-460.0,0.00020067,2]
[376722786,1754088645468,-460.0,0.00020067,2]
[376722787,1754088645477,-4484.45,0.00020067,2]
[376722788,1754088645487,-460.0,0.00020067,2]
[376722789,1754088645496,-460.0,0.00020067,2]
[376722790,1754088645505,-896.45,0.00020067,2]
[376722791,1754088645514,-728.64,0.00020067,2]
[376722792,1754088645524,-460.0,0.00020067,2]
[376722793,1754088645533,-562.16,0.00020067,2]
[376722794,1754088645542,-460.0,0.00020067,2]
[376722795,1754088645551,-460.0,0.00020067,2]
[376722796,1754088645560,-566.75,0.00020067,2]
[376722797,1754088645569,-576.79,0.00020067,2]
[376722798,1754088645579,-460.0,0.00020067,2]
[376722799,1754088645588,-460.0,0.00020067,2]
[376722800,1754088645596,-475.55,0.00020067,2]
[376722801,1754088645609,-460.0,0.00020067,2]
[376722802,1754088645618,-460.0,0.00020067,2]
[376722803,1754088645628,-879.31,0.00020067,2]
[376722804,1754088645636,-460.0,0.00020067,2]
[376722805,1754088645646,-460.0,0.00020067,2]
[376722806,1754088645655,-460.0,0.00020067,2]
[376722807,1754088645664,-460.0,0.00020067,2]
[376722808,1754088645672,-636.2,0.00020067,2]
[376722809,1754088645681,-460.0,0.00020067,2]
[376722810,1754088645690,-460.0,0.00020067,2]
[376722811,1754088645699,-460.0,0.00020067,2]
[376722812,1754088645708,-1383.57,0.00020067,2]
[376722813,1754088645717,-460.0,0.00020067,2]
[376722814,1754088645727,-460.0,0.00020067,2]
[376722815,1754088645736,-1043.29,0.00020067,2]
[376722816,1754088645746,-460.0,0.00020067,2]
[376722817,1754088645755,-460.0,0.00020067,2]
[376722818,1754088645765,-803.23,0.00020067,2]
[376722819,1754088645777,-460.0,0.00020067,2]
[376722820,1754088645786,-460.0,0.00020067,2]
[376722821,1754088645795,-460.0,0.00020067,2]
[376722822,1754088645804,-463.81,0.00020067,2]
[376722823,1754088645814,-460.0,0.00020067,2]
[376722824,1754088645823,-460.0,0.00020067,2]
[376722825,1754088645833,-460.0,0.00020067,2]
[376722826,1754088645842,-460.0,0.00020067,2]
[376722827,1754088645855,-460.0,0.00020067,2]
[376722828,1754088645866,-460.0,0.00020067,2]
[376722829,1754088645875,-828.95,0.00020067,2]
[376722831,1754088645884,-1212.03,0.00020067,2]
[376722832,1754088645894,-584.52447124,0.00020067,2]
[376722833,1754088645904,-460.0,0.00020067,2]
[376722834,1754088645913,-460.0,0.00020067,2]
[376722835,1754088645923,-1363.97,0.00020067,2]
[376722836,1754088645932,-673.23,0.00020067,2]
[376722837,1754088645941,-841.34,0.00020067,2]
[376722838,1754088645951,-460.0,0.00020067,2]
[376722839,1754088645960,-584.48,0.00020067,2]
[376722840,1754088645969,-1080.77,0.00020067,2]
[376722841,1754088645979,-460.0,0.00020067,2]
[376722842,1754088645988,-460.0,0.00020067,2]
[376722843,1754088645997,-460.0,0.00020067,2]
[376722844,1754088646007,-708.83,0.00020067,2]
[376722845,1754088646016,-460.0,0.00020067,2]
[376722846,1754088646026,-460.0,0.00020067,2]
[376722847,1754088646035,-460.0,0.00020067,2]
[376722849,1754088646044,-460.0,0.00020067,2]
[376722851,1754088646054,-986.67,0.00020067,2]
[376722853,1754088646063,-460.0,0.00020067,2]
[376722854,1754088646072,-460.0,0.00020067,2]
[376722855,1754088646081,-460.0,0.00020067,2]
[376722856,1754088646090,-2439.65,0.00020067,2]
[376722857,1754088646099,-811.38,0.00020068,2]
[376722858,1754088646108,-460.0,0.00020068,2]
[376722859,1754088646118,-669.71,0.00020068,2]
[376722860,1754088646127,-460.0,0.00020068,2]
[376722861,1754088646137,-460.0,0.00020068,2]
[376722862,1754088646146,-612.39,0.00020068,2]
[376722863,1754088646156,-460.0,0.00020068,2]
[376722864,1754088646165,-475.61,0.00020068,2]
[376722865,1754088646175,-464.31,0.00020068,2]
[376722866,1754088646184,-524.783828,0.00020068,2]
[376722867,1754088646194,-494.06,0.00020068,2]
[376722868,1754088646204,-967.75,0.00020068,2]
[376722869,1754088646213,-460.0,0.00020068,2]
[376722870,1754088646223,-1789.64,0.00020068,2]
[376722871,1754088646232,-743.72,0.00020069,2]
[376722872,1754088646241,-460.0,0.00020069,2]
[376722873,1754088646251,-460.0,0.00020069,2]
[376722874,1754088646260,-460.0,0.00020069,2]
[376722875,1754088646269,-460.0,0.00020069,2]
[376722876,1754088646279,-460.0,0.00020069,2]
[376722877,1754088646289,-460.0,0.00020069,2]
[376722878,1754088646299,-460.0,0.00020069,2]
[376722879,1754088646308,-460.0,0.00020069,2]
[376722880,1754088646317,-2073.82,0.00020069,2]
[376722881,1754088646327,-460.0,0.00020069,2]
[376722882,1754088646336,-543.12,0.00020069,2]
[376722883,1754088646346,-460.0,0.0002007,2]
[376722884,1754088646359,-460.0,0.0002007,2]
[376722885,1754088646368,-460.0,0.0002007,2]
[376722886,1754088646378,-460.0,0.0002007,2]
[376722887,1754088646388,-588.51,0.0002007,2]
[376722888,1754088646397,-460.0,0.0002007,2]
[376722889,1754088646406,-460.0,0.0002007,2]
[376722890,1754088646416,-460.0,0.0002007,2]
[376722891,1754088646425,-917.78,0.0002007,2]
[376722892,1754088646435,-4366.32,0.0002007,2]
[376722893,1754088646444,-460.0,0.0002007,2]
[376722894,1754088646453,-2293.28,0.00020071,2]
[376722895,1754088646462,-737.44,0.00020071,2]
[376722896,1754088646472,-460.0,0.00020071,2]
[376722897,1754088646481,-500.0,0.00020072,2]
[376722898,1754088646491,-202.69232619,0.00020072,2]
[376722899,1754088646500,-151.0,0.00020072,2]
[376722900,1754088646509,-500.0,0.00020072,2]
[376722901,1754088646519,-151.0,0.00020072,2]
[376722902,1754088646529,-151.63121868,0.00020072,2]
[376722903,1754088646538,-202.89231353,0.00020072,2]
[376722904,1754088646548,-151.0,0.00020072,2]
[376722905,1754088646558,-151.27403374,0.00020072,2]
[376722906,1754088646567,-151.0,0.00020072,2]
[376722908,1754088646576,-151.15142183,0.00020072,2]
[376722910,1754088646586,-500.0,0.00020072,2]
[376722912,1754088646595,-151.0,0.00020072,2]
[376722913,1754088646606,-500.0,0.00020072,2]
[376722914,1754088646616,-151.29593713,0.00020072,2]
[376722915,1754088646625,-152.94581995,0.00020072,2]
[376722922,1754088646701,-500.0,0.00020072,2]
[376722924,1754088646716,-151.73576305,0.00020072,2]
[376722926,1754088646725,-151.9661062,0.00020072,2]
[376722928,1754088646734,-500.0,0.00020072,2]
[376722930,1754088646744,-1138.0,0.00020072,2]
[376722931,1754088646753,-151.0,0.00020072,2]
[376722932,1754088646763,-151.20221908,0.00020072,2]
[376722933,1754088646774,-151.0,0.00020072,2]
[376722934,1754088646783,-151.27400105,0.00020072,2]
[376722935,1754088646792,-151.51466692,0.00020072,2]
[376722936,1754088646801,-151.93275479,0.00020072,2]
[376722937,1754088646810,-151.64454431,0.00020072,2]
[376722938,1754088646820,-151.0,0.00020072,2]
[376722939,1754088646829,-151.0,0.00020072,2]
[376722940,1754088646839,-500.0,0.00020072,2]
[376722941,1754088646851,-500.0,0.00020073,2]
[376722942,1754088646860,-500.0,0.00020073,2]
[376722943,1754088646870,-462.13637724,0.00020073,2]
[376722945,1754088646879,-500.0,0.00020073,2]
[376722947,1754088646889,-500.0,0.00020073,2]
[376722949,1754088646898,-500.0,0.00020073,2]
[376722951,1754088646907,-151.0,0.000201,3]
[376722953,1754088646916,-151.0,0.000201,3]
[376722955,1754088646925,-151.0,0.000201,4]
[376722957,1754088646935,-500.0,0.00020121,2]
[376722959,1754088646944,-440.57843255,0.00020172,2]
[376722961,1754088646953,-784.39392821,0.00020175,2]
[376722963,1754088646962,-151.0,0.000202,4]
[376722965,1754088646972,-151.0,0.000202,3]
[376722967,1754088646981,-151.0,0.000202,4]
[376722969,1754088646990,-589.71365464,0.00020271,2]
[376722970,1754088646999,-151.0,0.000203,4]
[376722971,1754088647009,-151.0,0.000203,3]
[376722972,1754088647018,-1000.0,0.00020321,2]
[376722973,1754088647027,-1000.0,0.00020321,2]
[376722974,1754088647036,-350.0,0.00020321,2]
[376722975,1754088647045,-1000.0,0.00020321,2]
[376722976,1754088647054,-460.0,0.00020339,2]
[376722977,1754088647063,-264.73307654,0.00020339,2]
[376722978,1754088647073,-460.0,0.00020339,2]
[376722979,1754088647082,-460.0,0.00020339,2]
[376722980,1754088647092,-460.0,0.00020339,2]
[376722981,1754088647104,-1701.56,0.00020339,2]
[376722982,1754088647122,-1115.94,0.00020339,2]
[376722983,1754088647132,-852.62,0.00020339,2]
[376722984,1754088647142,-460.0,0.00020339,2]
[376722985,1754088647152,-460.0,0.00020339,2]
[376722986,1754088647171,-869.0,0.00020339,2]
[376722987,1754088647180,-464.12,0.00020339,2]
[376722988,1754088647190,-1117.62,0.00020339,2]
[376722989,1754088647199,-912.55,0.00020339,2]
[376722990,1754088647208,-460.0,0.00020339,2]
[376722991,1754088647218,-901.04,0.00020339,2]
[376722992,1754088647227,-577.28,0.00020339,2]
[376722993,1754088647236,-460.0,0.00020339,2]
[376722994,1754088647245,-460.0,0.0002034,2]
[376722995,1754088647255,-460.0,0.0002034,2]
[376722996,1754088647264,-460.0,0.0002034,2]
[376722997,1754088647273,-460.0,0.0002034,2]
[376722998,1754088647282,-460.0,0.0002034,2]
[376722999,1754088647291,-442.03549409,0.0002034,2]
[376723000,1754088647300,-959.38,0.0002034,2]
[376723001,1754088647309,-460.0,0.0002034,2]
[376723002,1754088647319,-460.0,0.0002034,2]
[376723003,1754088647329,-763.6,0.0002034,2]
[376723004,1754088647339,-460.0,0.0002034,2]
[376723005,1754088647348,-689.07,0.0002034,2]
[376723006,1754088647361,-998.2,0.0002034,2]
[376723007,1754088647370,-1571.55,0.0002034,2]
[376723008,1754088647380,-577.96,0.0002034,2]
[376723009,1754088647390,-460.0,0.0002034,2]
[376723010,1754088647400,-568.71,0.0002034,2]
[376723011,1754088647410,-460.0,0.0002034,2]
[376723012,1754088647419,-460.0,0.0002034,2]
[376723014,1754088647429,-460.0,0.0002034,2]
[376723016,1754088647439,-1155.31,0.0002034,2]
[376723018,1754088647449,-460.0,0.0002034,2]
[376723020,1754088647458,-460.0,0.0002034,2]
[376723022,1754088647468,-1345.52,0.0002034,2]
[376723024,1754088647477,-460.0,0.0002034,2]
[376723025,1754088647487,-1075.67,0.0002034,2]
[376723027,1754088647496,-938.91,0.0002034,2]
[376723029,1754088647505,-2094.03,0.0002034,2]
[376723031,1754088647515,-460.0,0.0002034,2]
[376723033,1754088647524,-460.0,0.0002034,2]
[376723035,1754088647534,-8743.45,0.0002034,2]
[376723037,1754088647543,-460.0,0.0002034,2]
[376723039,1754088647552,-460.0,0.0002034,2]
[376723041,1754088647562,-460.0,0.0002034,2]
[376723043,1754088647572,-460.0,0.0002034,2]
[376723045,1754088647581,-460.0,0.0002034,2]
[376723047,1754088647591,-460.0,0.0002034,2]
[376723049,1754088647603,-460.0,0.0002034,2]
[376723051,1754088647612,-1076.94,0.0002034,2]
[376723053,1754088647620,-915.89,0.0002034,2]
[376723054,1754088647629,-460.0,0.0002034,2]
[376723056,1754088647638,-460.0,0.0002034,2]
[376723058,1754088647648,-460.0,0.0002034,2]